Cogmind - Beta 17 @@@ ROGUE MODE // 2026.07.15 @ 01:59:34 Player: kite Result: Destroyed by as-08972 with Assembled Maul Performance ------------- Evolutions (0) 0 Regions Visited (4) 800 Robots Destroyed (22) 110 Value Destroyed (345) 345 Prototype IDs (23) 460 Alien Tech Used (0) 0 Bonus (300) 300 TOTAL SCORE: 2015 Bonus ------- Aligned with FarCom 300 Cogmind --------- Core Integrity 0/250 Matter 290/300 Energy 257/275 System Corruption 0% Temperature Hot (260) Movement Rolling (95) Ox1 Location -9/Mines Parts ------- > --- POWER (1) -------- Deuterium Engine > --- PROPULSION (2) --- Wheel Wheel > --- UTILITY (2) ------ Large Storage Unit Improved Light Armor Plating > --- WEAPON (2) ------- Ion Cannon Light Assault Rifle > --- INVENTORY (15) --- Light Ion Engine Aluminum Leg Aluminum Leg Wheel Wheel Humpback Small Battery (100) High-capacity Matter Pod (200) Hacking Suite Beam Cannon Beam Cannon Light Assault Rifle Rocket Launcher Field Lobotomy Kit (5) Peak State ------------ > --- POWER ------------ Deuterium Engine > --- PROPULSION ------- Wheel Wheel > --- UTILITY ---------- Large Storage Unit Launcher Guidance Computer > --- WEAPON ----------- Ion Cannon Mini Grenade Launcher > --- INVENTORY -------- Ion Engine Light Ion Engine Light Treads Aluminum Leg Compact Wheel Small Battery Launcher Guidance Computer Hacking Suite Particle Gun Field Laser Beam Cannon Beam Cannon Beam Cannon Beam Cannon Beam Cannon [Rating: 17] Favorites ----------- Power Deuterium Engine Engine Deuterium Engine Propulsion Wheel Treads Light Treads Leg Aluminum Leg Wheel Wheel Utility Large Storage Unit Device Seismic Detector Storage Large Storage Unit Processor Launcher Guidance Computer Protection Improved Light Armor Plating Weapon Light Assault Rifle Energy Gun Field Laser Energy Cannon Beam Cannon Ballistic Gun Light Assault Rifle Launcher Mini Grenade Launcher Build | -11 -10 -10 -10 -9 ------- Run | Yrd Mat Min Exi Min Slots Evolved . | . . . . . Power . | . . . . . Propulsion . | . . . . . Utility . | . . . . . Weapon . | . . . . . Parts Attached 32 | 7 4 20 . 1 Power 2 | 1 . 1 . . Engine 2 | 1 . 1 . . Core . | . . . . . Reactor . | . . . . . Propulsion 12 | 2 . 9 . 1 Treads 2 | 2 . . . . Leg 3 | . . 3 . . Wheel 7 | . . 6 . 1 Hover . | . . . . . Flight . | . . . . . Utility 6 | 2 1 3 . . Device 1 | 1 . . . . Storage 2 | 1 1 . . . Processor 1 | . . 1 . . Hackware . | . . . . . Protection 2 | . . 2 . . Artifact . | . . . . . Weapon 12 | 2 3 7 . . Energy Gun 2 | . . 2 . . Energy Cannon 3 | . 2 1 . . Ballistic Gun 5 | 2 1 2 . . Ballistic Cannon . | . . . . . Launcher 2 | . . 2 . . Special Weapon . | . . . . . Impact Weapon . | . . . . . Slashing Weapon . | . . . . . Piercing Weapon . | . . . . . Special Melee Weapon . | . . . . . Unidentified Prototypes . | . . . . . Parts Lost 3 | . . 3 . . Power . | . . . . . Propulsion 1 | . . 1 . . Utility 1 | . . 1 . . Weapon 1 | . . 1 . . Highest Loss Streak 2 | . . 2 . . To Critical Strikes 1 | . . 1 . . Average Backups 12 | 4 7 13 14 13 Power 1 | . 1 2 1 1 Propulsion 2 | 2 1 1 2 3 Utility 2 | . . 2 3 4 Weapon 6 | . 4 7 7 4 Tool/Special . | . . . . . Unused Backups 19 | . 3 3 2 11 Power 2 | . . 1 . 1 Propulsion 6 | . 3 2 . 1 Utility 5 | . . . 1 4 Weapon 5 | . . . 1 4 Tool/Special 1 | . . . . 1 Average Slot Usage (%) 99 | . 99 98 100 100 Engine 14 | . 14 14 14 14 Treads 9 | . 28 9 . . Leg 1 | . . 3 . . Wheel 16 | . . 14 28 28 Device 3 | . 14 3 . . Storage 14 | . 14 14 14 14 Protection 9 | . . 10 14 14 Energy Gun 1 | . . 1 . . Energy Cannon 8 | . 21 8 . . Ballistic Gun 18 | . 6 16 28 26 Peak Build Rating 17 | 7 7 17 14 15 Average Rating 11 | 5 6 12 13 13 On Entrance 8 | . 7 7 13 13 Avg Prop Armor Cover (%) 5 | . . 5 . . Naked Turns . | . . . . . Heaviest Build 42 | 13 32 42 34 37 Greatest Support 40 | 40 40 40 20 20 Greatest Overweight (x) 11 | 3 . 11 1 1 Average Overweight (x) . | . . . 1 1 Largest Inventory Capacity 15 | 8 15 15 15 15 Average Capacity 14 | 7 12 15 15 15 Most Carried 15 | 6 8 15 15 15 Average Carried 12 | 4 7 13 14 14 Final Capacity 15 | 8 15 15 15 15 Final Carried 15 | 6 8 15 15 15 Class Distribution -------------------- 54% | Scavenger-Mutant 45% | Mutant Dominant Class ---------------- Mutant | -10/Materials Mutant | -10/Mines Scavenger-Mutant | -10/Exiles Scavenger-Mutant | -9/Mines Resources | -11 -10 -10 -10 -9 ----------- Run | Yrd Mat Min Exi Min Matter Collected 907 | 227 128 373 40 139 Remotely . | . . . . . Salvage Created 690 | 59 203 329 . 99 Parts 41 | 8 7 14 . 12 Haulers Intercepted . | . . . . . Recyclers Shooed . | . . . . . Parts Field Recycled . | . . . . . Retrieved Matter . | . . . . . Parts Self-Destructed . | . . . . . Prevented . | . . . . . Parts Restored . | . . . . . Kills | -11 -10 -10 -10 -9 ------- Run | Yrd Mat Min Exi Min Combat Hostiles Destroyed 27 | . 3 19 . 5 Melee 1 | . 1 . . . Guns 9 | . . 8 . 1 Cannons 14 | . 2 10 . 2 AOE 3 | . . 1 . 2 Classes Destroyed 7 | 1 2 2 . 2 Worker 3 | . . . . 3 Builder 1 | . . . . 1 Tunneler 3 | 3 . . . . Recycler 1 | . 1 . . . Swarmer 8 | . . 5 . 3 Grunt 6 | . 3 3 . . Assembled 13 | . . 11 . 2 Best Kill Streak 4 | 2 2 4 . 4 Combat Bots Only 4 | . 2 4 . 3 Max Kills in Single Turn 3 | 1 1 1 . 3 Gunslinging . | . . . . . Exploded 2 | . . 1 . 2 Melee 1 | . 1 . . . Uniques/NPCs Destroyed . | . . . . . Combat | -11 -10 -10 -10 -9 -------- Run | Yrd Mat Min Exi Min Hostile Shots Fired 119 | . 23 80 . 16 Missed 31 | . 7 23 . 1 Hits 88 | . 16 57 . 15 Melee 10 | . . 3 . 7 Projectile 78 | . 16 54 . 8 Critical Strikes 3 | . 1 2 . . Damage Taken 1120 | . 183 723 . 214 Core 255 | . 44 139 . 72 Absorbed by Shields . | . . . . . Ignored by Resistances 5 | . . 5 . . Core Remaining (%) 100 | 100 . . . . Volleys Fired 104 | 9 14 60 . 21 Largest 2 | 2 2 2 . 2 Hottest 128 | 40 120 128 . 60 Shots Fired 183 | 18 28 107 . 30 Gun 104 | 18 6 62 . 18 Cannon 74 | . 22 41 . 11 Launcher 5 | . . 4 . 1 Special . | . . . . . Kinetic 88 | 18 6 46 . 18 Thermal 90 | . 22 57 . 11 Explosive 5 | . . 4 . 1 Electromagnetic . | . . . . . Robot Hit Streak 6 | 3 6 5 . 6 Robot Miss Streak 4 | 2 4 4 . 3 Penetration Max . | . . . . . Secondary Targets . | . . . . . Shots Hit Robots 97 | 12 13 54 . 18 Core Hits 56 | 6 7 32 . 11 Critical Kills 1 | . . . . 1 Critical Parts Destroyed . | . . . . . Critical Strikes 3 | . . 2 . 1 Burn 2 | . . 2 . . Destroy 1 | . . . . 1 Melee Attacks . | . . . . . Impact . | . . . . . Slashing . | . . . . . Piercing . | . . . . . Sneak Attacks . | . . . . . Combat Hostiles . | . . . . . Follow-up Attacks . | . . . . . Damage Inflicted 1661 | 97 233 897 . 434 Guns 582 | 97 27 366 . 92 Cannons 804 | . 195 451 . 158 Explosions 264 | . . 80 . 184 Melee . | . . . . . Ramming 11 | . 11 . . . Kinetic 415 | 97 27 199 . 92 Thermal 971 | . 195 618 . 158 Explosive 264 | . . 80 . 184 Electromagnetic . | . . . . . Impact . | . . . . . Slashing . | . . . . . Piercing . | . . . . . Highest Corruption . | . . . . . Average Corruption . | . . . . . Corruption Purged . | . . . . . Corruption Blocked . | . . . . . Overload Shots . | . . . . . Overflow Damage 16 | . . 4 . 12 Projectiles 8 | . . 4 . 4 Explosions 8 | . . . . 8 Melee . | . . . . . Knockbacks . | . . . . . Impact . | . . . . . Kinetic . | . . . . . Secondary . | . . . . . Self-Inflicted Damage . | . . . . . Shots . | . . . . . Rammed 3 | . 3 . . . Targets Rammed 3 | . 3 . . . Kicked . | . . . . . Crushed . | . . . . . Highest Temperature 515 | . 316 515 . 260 Average Temperature 134 | . 128 145 . 74 Received Heat Transfer 237 | . 120 117 . . Effects 6 | . . 6 . . Shutdowns 1 | . . 1 . . Energy Bleed 1 | . . 1 . . Interference 2 | . . 2 . . Matter Decay 1 | . . 1 . . Damage (minor) 1 | . . 1 . . Siege Activations . | . . . . . Martial Activations . | . . . . . Shielding Activations . | . . . . . Robots Disrupted . | . . . . . Combat Hostiles . | . . . . . Robots Corrupted . | . . . . . Combat Hostiles . | . . . . . Parts Fried . | . . . . . Impact Corruptions . | . . . . . Robots Melted . | . . . . . Combat Hostiles . | . . . . . Parts Melted 3 | . . 3 . . Heat Transferred 2109 | . 407 1443 . 259 Parts Sabotaged . | . . . . . Parts Stolen . | . . . . . Parts Stripped . | . . . . . Power Chain Reactions . | . . . . . Alert | -11 -10 -10 -10 -9 ------- Run | Yrd Mat Min Exi Min Maximum Alert Level . | . . . . . Low Security (%) 100 | 100 100 100 . 100 Level 1 . | . . . . . Level 2 . | . . . . . Level 3 . | . . . . . Level 4 . | . . . . . Level 5 . | . . . . . High Security . | . . . . . Max Security . | . . . . . Peak Influence 87 | 10 70 73 . 87 Initial 23 | . . 23 . . Average 13 | 1 11 12 . 23 Influence Increases 434 | 15 115 202 . 102 Destroy 0b10 Robot/C 280 | . 60 160 . 60 Destroy 0b10 Robot/NC 40 | 15 5 . . 20 Destroy Leader 70 | . 20 40 . 10 Destroy Structure 14 | . . 2 . 12 Lose Combat Pursuer 30 | . 30 . . . Influence Decreases 434 | 15 55 262 . 102 Entered New Map 37 | . . 37 . . Time Decay 397 | 15 55 225 . 102 Squads Dispatched 2 | . 1 1 . . Investigation 2 | . 1 1 . . Extermination . | . . . . . Reinforcement . | . . . . . Assault . | . . . . . Garrison . | . . . . . Intercept . | . . . . . Searches Triggered . | . . . . . Construction Impeded . | . . . . . Haulers Reinforced . | . . . . . Active Scanning Responses . | . . . . . Cargo Convoy Interrupts . | . . . . . Stealth | -11 -10 -10 -10 -9 --------- Run | Yrd Mat Min Exi Min Distress Signals 1 | . 1 . . . Communications Jammed . | . . . . . Distress Signals . | . . . . . Times Spotted 32 | . 6 20 . 6 Peak Tracking Total 4 | . 4 4 . 3 Tactical Retreats 1 | . 1 . . . Traps | -11 -10 -10 -10 -9 ------- Run | Yrd Mat Min Exi Min Traps Triggered 1 | . 1 . . . Indirectly . | . . . . . Trap Hack Attempts . | . . . . . Triggered . | . . . . . Disarmed . | . . . . . Reprogrammed . | . . . . . Reused . | . . . . . Traps Extracted . | . . . . . Installed . | . . . . . Triggered . | . . . . . Machines | -11 -10 -10 -10 -9 ---------- Run | Yrd Mat Min Exi Min Machines Disabled . | . . . . . Max in Single Turn . | . . . . . Machines Repaired . | . . . . . Machines Dismantled . | . . . . . Machines Sabotaged . | . . . . . Overloaded Fab Kills . | . . . . . Hacking | -11 -10 -10 -10 -9 --------- Run | Yrd Mat Min Exi Min Machines Accessed 4 | . 1 1 2 . Terminals 1 | . 1 . . . Fabricators . | . . . . . Repair Stations . | . . . . . Recycling Units . | . . . . . Scanalyzers . | . . . . . Garrison Access . | . . . . . Total Hacks 8 | . 2 1 5 . Successful 6 | . . 1 5 . Failed 2 | . 2 . . . Catastrophic 1 | . 1 . . . Database Lockouts . | . . . . . Manual 3 | . 2 . 1 . Terminals 2 | . 2 . . . Fabricators . | . . . . . Repair Stations . | . . . . . Recycling Units . | . . . . . Scanalyzers . | . . . . . Garrison Access . | . . . . . Terminal Hacks 6 | . . 1 5 . Record 4 | . . . 4 . Open Door 1 | . . 1 . . Proto ID Catalog 1 | . . . 1 . Fabricator Hacks . | . . . . . Repair Station Hacks . | . . . . . Recycling Unit Hacks . | . . . . . Scanalyzer . | . . . . . Garrison Access Hacks . | . . . . . Unauthorized Hacks . | . . . . . Terminals . | . . . . . Fabricators . | . . . . . Repair Stations . | . . . . . Recycling Units . | . . . . . Scanalyzers . | . . . . . Garrison Access . | . . . . . Data Cores Recovered . | . . . . . Used . | . . . . . Hacking Detections 1 | . 1 . . . Full Trace Events 1 | . 1 . . . Feedback Events . | . . . . . Feedback Blocked . | . . . . . Robot Schematics Acquired . | . . . . . Robots Built . | . . . . . Authchips . | . . . . . Time . | . . . . . Total Robot Build Rating . | . . . . . Part Schematics Acquired . | . . . . . Parts Built . | . . . . . Authchips . | . . . . . Time . | . . . . . Total Part Build Rating . | . . . . . Part Studies Acquired . | . . . . . Parts Repaired . | . . . . . Time . | . . . . . Parts Recycled . | . . . . . Recycled Matter . | . . . . . Retrieved Matter . | . . . . . Retrieved Components . | . . . . . Parts Scanalyzed . | . . . . . Part Schematics Acquired . | . . . . . Parts Damaged . | . . . . . Bothacking | -11 -10 -10 -10 -9 ------------ Run | Yrd Mat Min Exi Min Used RIF Installer . | . . . . . Robots Hacked . | . . . . . Non-combat . | . . . . . Combat . | . . . . . Robot Hacks Applied . | . . . . . Relay Couplers Released . | . . . . . Fabnet Peak Effective % . | . . . . . Robots Rewired . | . . . . . Allies Hacked . | . . . . . Hacks Repelled . | . . . . . Allies | -11 -10 -10 -10 -9 -------- Run | Yrd Mat Min Exi Min Total Allies . | . . . . . Largest Group . | . . . . . Highest-Rated Group . | . . . . . Highest-Rated Ally . | . . . . . Total Orders . | . . . . . Ally Attacks . | . . . . . Total Damage . | . . . . . Kills . | . . . . . Allies Corrupted . | . . . . . Allies Melted . | . . . . . Intel | -11 -10 -10 -10 -9 ------- Run | Yrd Mat Min Exi Min Active Infowar (turns) 657 | 6 365 286 . . Seismic 657 | 6 365 286 . . Robot Analysis Total . | . . . . . Derelict Logs Recovered 2 | . . 2 . . Drone Launches . | . . . . . Drone Recoveries . | . . . . . Exploration | -11 -10 -10 -10 -9 ------------- Run | Yrd Mat Min Exi Min Turns Passed 2486 | 109 365 1354 281 377 Spaces Moved 1600 | 46 177 878 289 210 Core 6 | 5 . 1 . . Treads 446 | 41 177 228 . . Legs 58 | . . 58 . . Wheels 1090 | . . 591 289 210 Hover . | . . . . . Flight . | . . . . . Fastest Speed 50 | 50 160 95 95 95 Average Speed 119 | 152 160 123 95 95 Slowest Speed 600 | 200 160 600 95 95 Overloaded Moves . | . . . . . Propulsion Burnouts . | . . . . . Robots Hopped . | . . . . . Potential Cave-ins . | . . . . . Cave-ins Triggered . | . . . . . Exploration Rate (%) 47 | 3 29 95 60 50 Regions Visited 4 Branch Regions 3 Pre-discovered Areas 2 | . . 1 1 . Known Exits Taken . | . . . . . Unknown Exits Taken 4 | 1 1 1 1 . Scrap Searched 2 | . . 1 . 1 Spaces Dug . | . . . . . Terrain Destroyed 30 | . . 17 . 13 Melee . | . . . . . Projectile . | . . . . . AOE 30 | . . 17 . 13 Terrain Rammed . | . . . . . Walls Destroyed . | . . . . . Machines Disabled . | . . . . . Actions | -11 -10 -10 -10 -9 --------- Run | Yrd Mat Min Exi Min Total 1996 | 67 230 1041 297 361 Wait 190 | . 20 53 . 117 Move 1596 | 45 176 877 288 210 Hop . | . . . . . Pick Up 29 | 6 5 12 4 2 Fast Attach 21 | 7 4 10 . . Attach 2 | . . 2 . . Detach . | . . . . . Swap 20 | . 2 10 . 8 Drop 31 | . 6 17 5 3 Fire 104 | 9 14 60 . 21 Melee . | . . . . . Ram . | . . . . . Kick . | . . . . . Crush 3 | . 3 . . . Escape Stasis . | . . . . . Rewire . | . . . . . Trap . | . . . . . Miscellaneous . | . . . . . Route ------- -11/Scrapyard -10/Materials (discovered 2 exits: *Min x2) -10/Mines (discovered 3 exits: [*Mat x2] / *Exi) -10/Exiles -9/Mines History --------- Turn | Location | Event 12 | -11/Scrapyard | Discovered new exit (range 14) 110 | -11/Scrapyard | Entered Materials 289 | -10/Materials | Discovered new exit (range 2) 302 | -10/Materials | Build established: Mutant 357 | -10/Materials | Discovered new exit (range 12) 475 | -10/Materials | Entered Mines 599 | -10/Mines | Assembled infested the area 729 | -10/Mines | Discovered new exit (range 8) 736 | -10/Mines | Met a Derelict shopkeep closing up shop 780 | -10/Mines | Discovered new exit (range 13) 882 | -10/Mines | Core integrity fell below 50% 980 | -10/Mines | Learned location of Storage (-7) 1209 | -10/Mines | Received a Rocket Launcher from a helpful Derelict 1234 | -10/Mines | Learned Materials garrison access intel 1446 | -10/Mines | Build established: Scavenger-Mutant 1467 | -10/Mines | A weapon hastily lodged in a ceiling crevice suddenly fell to the ground 1613 | -10/Mines | Deemed a non-threat by the Exiles lab entrance 1613 | -10/Mines | Discovered new exit (range 5) 1829 | -10/Mines | Entered Exiles 1852 | -10/Exiles | Met 8R-AWN 1869 | -10/Exiles | Met EX-HEX 1896 | -10/Exiles | Met EX-BIN 1907 | -10/Exiles | Aligned with FarCom system 1908 | -10/Exiles | Given EX-Vault access code 1932 | -10/Exiles | Opened EX-Vault 1938 | -10/Exiles | Found Field Lobotomy Kit 1958 | -10/Exiles | Warned to stay clear of 0b10 Research branches 1985 | -10/Exiles | Met EX-DEC 1993 | -10/Exiles | Learned location of Zion (-7) 2060 | -10/Exiles | Discovered new exit (range 14) 2110 | -10/Exiles | Left Exiles lab with Field Lobotomy Kit 2110 | -10/Exiles | Entered Mines 2188 | -9/Mines | Core integrity fell below 20% 2354 | -9/Mines | Excavation squad dispatched 2354 | -9/Mines | A large section of the Mines collapsed 2487 | -9/Mines | Destroyed by as-08972 with Assembled Maul Last Messages --------------- 02242_ K-01 Serf collects debris. 02246_ K-01 Serf destroyed. 02249_ Acquired 21 matter. 02250_ Dropped Wheel. 02254_ Dropped Beam Cannon. 02255_ Acquired Wheel. 02257_ Dropped Beam Cannon. 02257_ Acquired Wheel. 02287_ U-05 Engineer destroyed. 02289_ Acquired 15 matter. 02293_ K-01 Serf destroyed. 02295_ Acquired 12 matter. 02296_ Extracted 11 matter. 02350_ T-07 Excavator is excavating. 02354_ ALERT: Suspicious cave-in, suspected derelict activity in mines. Dispatching escorted excavation squad. 02469_ as-75466 destroyed. 02471_ as-76608 destroyed. 02479_ Destroyed Asb. Hover Unit. Map ----- +----------------------------------------------------+ | ?????????????????????????# ????? ###??????# | | ?????????????????????????# #?????? #??????# | | ?????????????????????????# #??????? ?????### | | ???????????????????#####?# #????#### ????## | | ???????????????????# ### #????? #????# | | ???????????????????## #???????# ###### | | ????????????????????## ##??????# ! * | ! | | ?????????????????????### ##?????# ####### | | ???????????????????????## #?????# ##????## | | ????????????????????????# ##????# #????## | | ????????????????????????# ###### #???## | | ????????????????????????# #??## | | ???????????g????????##### ##??# | | ????????????????????# ##???# | | ????????????????????# #????## | | ????????????????????# ####### ##?????# | | ????????????????????# #?????## #####??????## | | ??????????g??????#### #??????####???????????## | | ?????????????????# #??????????????????????# | | ?????????????????# ####??????????????????????## | | ????????????????#####?????????????????????????## | | ????????????##### #%##?????????????????????????? | | ????????????# # ##????????????????????????? | | ????????????# #### #%###??????????????????????? | | ?????????????????#####a ##?????????????????????? | | ???????????????????## @####???????????????????? | | ????????????????????##### ##??????????????????? | | ?????????????????????### #??????????????????? | | ???????????????????????## #??????????????????? | | ????????????????????????# ##??????????????????? | | ????????????????????????# #???????????????????? | | ????????????????????????# #???????????????????? | | ????????????????????????# #???????????????????? | | ????????????????????????# #???????????????????? | | ????????????????????????# #???????????????????# | | ????????????????????????####???????????????????# | | ???????????????????????????????????????????????# | | ??????????????????????????????????????????##??## | | ?????????????????????????????????????????## ### | | ?????????????????????????????????????????# | | ?????????????????????????????????????????# | | ?????????????????????????????????????????## ### | | ??????????????????????????????????????????####?? | | ???????????????????????????????????????????????? | | ???????????????????????????????????????????????? | | | | | | | | | | | +----------------------------------------------------+ Best States ------------- Heat Dissipation 25 Energy Generation 14 Energy Capacity 275 Matter Stores 300 Matter Capacity 300 Sight Range 16 Terrain Scan Density 10 Armor Coverage 150 Resistance: TH 10 Evasion (%) 41 Launcher Accuracy 20 Recoil Reduction 2 Item Schematics ----------------- None Robot Schematics ------------------ None Fabricated ------------ Nothing Repaired ---------- Nothing Studied --------- None Alien Tech Used ----------------- None Achievements -------------- None Challenges ------------ None Game ------ Seed ZioniteMagneticFist Manual? 0 Play Time 00:12:08 Cumulative 460.2 hours Start 2026.07.15 @ 01:48:52 End 2026.07.15 @ 01:59:34 Sessions 1 Manual Loads 0 Difficulty Rogue Special Mode None Game No. 427 Rogue 427 Adventurer 0 Explorer 0 Win Type - Total 11 Types 7/0/2/1/0/0/0/0/0/1 Lore% 62 Gallery% 69 Achievement% 65 Wizard Run 0 Options --------- Layout 1 ASCII 0 Keyboard 0 Movement Mouse Keybinds 0 Fullscreen 2 Font 24/Cog Map View 50x35 Zoom Use 27% Tactical HUD 1 Map Filters NONE Filters NONE Steam 1 RUN: 39c1e8ae-cf9c-4827-b57a-3e37cd320649